[Event "Snabb-SM för veteraner, 65+ 2019"]
[Site "Schackcentrum, Vegagatan 20, Gothenburg, Sweden"]
[Date "2019.10.05"]
[Round "4.5"]
[White "Landin, Bo"]
[Black "Kvarby, Anders"]
[Result "1/2-1/2"]
[TimeControl "15 minutes + 10 seconds per move from move one"]
[WhiteFideId "1705261"]
[BlackFideId "1746596"]
[WhiteElo "1959"]
[BlackElo "1887"]

1. e4 {[%clk 00:15:17]} {[%emt 00:00:02]} d5 {[%clk 00:15:17]} {[%emt
00:00:03]} 2. exd5 {[%clk 00:15:25]} {[%emt 00:00:02]} Qxd5 {[%clk 00:15:25]}
{[%emt 00:00:02]} 3. Nc3 {[%clk 00:15:33]} {[%emt 00:00:02]} Qa5 {[%clk
00:15:33]} {[%emt 00:00:01]} 4. Nf3 {[%clk 00:15:41]} {[%emt 00:00:02]} Nf6
{[%clk 00:15:41]} {[%emt 00:00:03]} 5. d4 {[%clk 00:15:47]} {[%emt 00:00:04]}
Bf5 {[%clk 00:15:47]} {[%emt 00:00:04]} 6. Bd2 {[%clk 00:15:45]} {[%emt
00:00:12]} c6 {[%clk 00:15:43]} {[%emt 00:00:13]} 7. Bc4 {[%clk 00:15:38]}
{[%emt 00:00:17]} e6 {[%clk 00:15:44]} {[%emt 00:00:09]} 8. O-O {[%clk
00:15:40]} {[%emt 00:00:08]} Qc7 {[%clk 00:15:44]} {[%emt 00:00:09]} 9. Re1
{[%clk 00:15:41]} {[%emt 00:00:10]} Be7 {[%clk 00:15:26]} {[%emt 00:00:27]} 10.
Bb3 {[%clk 00:15:19]} {[%emt 00:00:32]} Nbd7 {[%clk 00:15:22]} {[%emt
00:00:14]} 11. Qe2 {[%clk 00:14:58]} {[%emt 00:00:31]} h6 {[%clk 00:15:05]}
{[%emt 00:00:27]} 12. Rad1 {[%clk 00:14:25]} {[%emt 00:00:43]} O-O {[%clk
00:15:11]} {[%emt 00:00:05]} 13. g3 {[%clk 00:14:06]} {[%emt 00:00:28]} Bd6
{[%clk 00:14:35]} {[%emt 00:00:45]} 14. Ne5 {[%clk 00:12:59]} {[%emt 00:01:17]}
Nb6 {[%clk 00:13:11]} {[%emt 00:01:35]} 15. Bf4 {[%clk 00:11:48]} {[%emt
00:01:21]} a5 {[%clk 00:12:42]} {[%emt 00:00:40]} 16. a3 {[%clk 00:11:26]}
{[%emt 00:00:32]} a4 {[%clk 00:12:38]} {[%emt 00:00:13]} 17. Ba2 {[%clk
00:11:29]} {[%emt 00:00:07]} Nbd5 {[%clk 00:12:41]} {[%emt 00:00:07]} 18. Nxd5
{[%clk 00:11:25]} {[%emt 00:00:14]} Nxd5 {[%clk 00:12:13]} {[%emt 00:00:38]} 19.
Bc1 {[%clk 00:11:24]} {[%emt 00:00:12]} Rad8 {[%clk 00:10:58]} {[%emt
00:01:25]} 20. c3 {[%clk 00:11:13]} {[%emt 00:00:20]} Nf6 {[%clk 00:10:34]}
{[%emt 00:00:34]} 21. Qc4 {[%clk 00:10:54]} {[%emt 00:00:30]} Ne4 {[%clk
00:08:53]} {[%emt 00:01:52]} 22. Nf3 {[%clk 00:09:56]} {[%emt 00:01:07]} b5
{[%clk 00:08:16]} {[%emt 00:00:48]} 23. Qe2 {[%clk 00:10:00]} {[%emt 00:00:06]}
Nf6 {[%clk 00:08:11]} {[%emt 00:00:15]} 24. Ne5 {[%clk 00:09:39]} {[%emt
00:00:30]} Kh7 {[%clk 00:07:29]} {[%emt 00:00:52]} 25. f3 {[%clk 00:09:17]}
{[%emt 00:00:32]} Kh8 {[%clk 00:07:00]} {[%emt 00:00:39]} 26. Kg2 {[%clk
00:09:14]} {[%emt 00:00:13]} Qb7 {[%clk 00:06:59]} {[%emt 00:00:11]} 27. g4
{[%clk 00:08:52]} {[%emt 00:00:32]} Bh7 {[%clk 00:07:06]} {[%emt 00:00:03]} 28.
h3 {[%clk 00:08:31]} {[%emt 00:00:30]} c5 {[%clk 00:06:55]} {[%emt 00:00:21]}
29. dxc5 {[%clk 00:08:14]} {[%emt 00:00:27]} Bxc5 {[%clk 00:06:58]} {[%emt
00:00:07]} 30. Be3 {[%clk 00:08:09]} {[%emt 00:00:15]} Bd6 {[%clk 00:06:49]}
{[%emt 00:00:19]} 31. Bd4 {[%clk 00:08:03]} {[%emt 00:00:16]} Nd5 {[%clk
00:06:47]} {[%emt 00:00:13]} 32. Bxd5 {[%clk 00:07:41]} {[%emt 00:00:32]} exd5
{[%clk 00:06:29]} {[%emt 00:00:27]} 33. Nd3 {[%clk 00:07:31]} {[%emt 00:00:19]}
Qc7 {[%clk 00:06:05]} {[%emt 00:00:33]} 34. Ne5 {[%clk 00:06:38]} {[%emt
00:01:05]} f6 {[%clk 00:05:32]} {[%emt 00:00:43]} 35. Nd3 {[%clk 00:06:43]}
{[%emt 00:00:04]} Qc4 {[%clk 00:05:26]} {[%emt 00:00:17]} 36. Nc1 {[%clk
00:06:40]} {[%emt 00:00:13]} Bg6 {[%clk 00:05:27]} {[%emt 00:00:08]} 37. Qxc4
{[%clk 00:06:45]} {[%emt 00:00:04]} dxc4 {[%clk 00:05:19]} {[%emt 00:00:19]} 38.
Ne2 {[%clk 00:06:45]} {[%emt 00:00:10]} Rfe8 {[%clk 00:05:16]} {[%emt
00:00:14]} 39. Ng3 {[%clk 00:06:48]} {[%emt 00:00:07]} Bc2 {[%clk 00:05:00]}
{[%emt 00:00:26]} 40. Rxe8+ {[%clk 00:06:30]} {[%emt 00:00:27]} Rxe8 {[%clk
00:05:10]} 41. Rd2 {[%clk 00:06:26]} {[%emt 00:00:14]} Bd3 {[%clk 00:05:18]}
{[%emt 00:00:02]} 42. Kf2 {[%clk 00:06:24]} {[%emt 00:00:12]} Bf4 {[%clk
00:05:24]} {[%emt 00:00:04]} 43. Rd1 {[%clk 00:06:26]} {[%emt 00:00:07]} Bc2
{[%clk 00:05:18]} {[%emt 00:00:16]} 44. Rg1 {[%clk 00:06:18]} {[%emt 00:00:18]}
Kg8 {[%clk 00:05:18]} {[%emt 00:00:10]} 45. Nh5 {[%clk 00:06:19]} {[%emt
00:00:09]} Bc7 {[%clk 00:05:09]} {[%emt 00:00:17]} 46. Re1 {[%clk 00:06:20]}
{[%emt 00:00:10]} Rxe1 {[%clk 00:05:08]} {[%emt 00:00:11]} 47. Kxe1 {[%clk
00:06:29]} Kf7 {[%clk 00:05:14]} {[%emt 00:00:04]} 48. Bf2 {[%clk 00:06:27]}
{[%emt 00:00:12]} g6 {[%clk 00:05:17]} {[%emt 00:00:08]} 49. Bg3 {[%clk
00:06:14]} {[%emt 00:00:23]} Bb6 {[%clk 00:05:13]} {[%emt 00:00:13]} 50. Nf4
{[%clk 00:06:19]} {[%emt 00:00:05]} Be3 {[%clk 00:05:11]} {[%emt 00:00:12]} 51.
Nd5 {[%clk 00:06:21]} {[%emt 00:00:08]} Bc1 {[%clk 00:05:09]} {[%emt 00:00:12]}
52. Nc7 {[%clk 00:06:16]} {[%emt 00:00:15]} Bxb2 {[%clk 00:05:16]} {[%emt
00:00:04]} 53. Nxb5 {[%clk 00:06:24]} {[%emt 00:00:02]} Ke6 {[%clk 00:05:16]}
{[%emt 00:00:09]} 54. Kd2 {[%clk 00:06:26]} {[%emt 00:00:09]} Bd3 {[%clk
00:05:09]} {[%emt 00:00:17]} 55. Bf2 {[%clk 00:05:59]} {[%emt 00:00:37]} f5
{[%clk 00:05:06]} {[%emt 00:00:13]} 56. Be3 {[%clk 00:05:45]} {[%emt 00:00:23]}
fxg4 {[%clk 00:05:06]} {[%emt 00:00:10]} 57. fxg4 {[%clk 00:05:40]} {[%emt
00:00:15]} g5 {[%clk 00:05:03]} {[%emt 00:00:12]} 58. Bc5 {[%clk 00:05:39]}
{[%emt 00:00:11]} Bf1 {[%clk 00:05:03]} {[%emt 00:00:11]} 59. Kc2 {[%clk
00:05:38]} {[%emt 00:00:11]} Bxh3 {[%clk 00:04:51]} {[%emt 00:00:22]} 60. Kxb2
{[%clk 00:05:41]} {[%emt 00:00:06]} Bxg4 {[%clk 00:05:00]} {[%emt 00:00:02]} 61.
Kc2 {[%clk 00:05:34]} {[%emt 00:00:17]} Bf5+ {[%clk 00:04:43]} {[%emt
00:00:26]} 62. Kd2 {[%clk 00:05:42]} {[%emt 00:00:03]} h5 {[%clk 00:04:51]}
{[%emt 00:00:02]} 63. Nd4+ {[%clk 00:05:45]} {[%emt 00:00:07]} Kf6 {[%clk
00:04:34]} {[%emt 00:00:27]} 64. Nxf5 {[%clk 00:05:46]} {[%emt 00:00:10]} Kxf5
{[%clk 00:04:44]} 65. Ke2 {[%clk 00:05:54]} {[%emt 00:00:02]} Ke4 {[%clk
00:04:46]} {[%emt 00:00:07]} 66. Kf2 {[%clk 00:06:01]} {[%emt 00:00:02]} Kd3
{[%clk 00:04:39]} {[%emt 00:00:17]} 67. Bb4 {[%clk 00:06:06]} {[%emt 00:00:05]}
h4 {[%clk 00:04:39]} {[%emt 00:00:10]} 68. Kf3 {[%clk 00:06:10]} {[%emt
00:00:05]} h3 {[%clk 00:04:45]} {[%emt 00:00:05]} 69. Kg3 {[%clk 00:06:04]}
{[%emt 00:00:17]} g4 {[%clk 00:04:53]} {[%emt 00:00:02]} 70. Ba5 {[%clk
00:06:08]} {[%emt 00:00:05]} Kd2 {[%clk 00:04:55]} {[%emt 00:00:06]} 71. Bb4
{[%clk 00:05:50]} {[%emt 00:00:30]} Kc2 {[%clk 00:05:03]} {[%emt 00:00:02]} 72.
Ba5 {[%clk 00:05:59]} {[%emt 00:00:02]} Kb2 {[%clk 00:05:11]} {[%emt 00:00:02]}
73. Bb4 {[%clk 00:06:07]} {[%emt 00:00:02]} Kb3 {[%clk 00:05:19]} {[%emt
00:00:01]} 74. Kh2 {[%clk 00:06:16]} {[%emt 00:00:01]} Kb2 {[%clk 00:05:28]}
{[%emt 00:00:02]} 75. Kg3 Kb3 {[%emt 00:00:01]} 1/2-1/2

[Event "Snabb-SM för veteraner, 65+ 2019"]
[Site "Schackcentrum, Vegagatan 20, Gothenburg, Sweden"]
[Date "2019.10.05"]
[Round "4.6"]
[White "Olesen, Christer"]
[Black "Przysuski, Feliks"]
[Result "0-1"]
[TimeControl "15 minutes + 10 seconds per move from move one"]
[WhiteFideId "1739069"]
[BlackFideId "1712489"]
[WhiteElo "1809"]
[BlackElo "2008"]

1. d4 {[%clk 00:15:16]} {[%emt 00:00:03]} Nf6 {[%clk 00:15:18]} {[%emt
00:00:02]} 2. Bf4 {[%clk 00:15:20]} {[%emt 00:00:05]} e6 {[%clk 00:15:21]}
{[%emt 00:00:07]} 3. e3 {[%clk 00:15:26]} {[%emt 00:00:04]} d5 {[%clk
00:15:30]} {[%emt 00:00:02]} 4. Nf3 {[%clk 00:15:23]} {[%emt 00:00:13]} Bd6
{[%clk 00:15:20]} {[%emt 00:00:20]} 5. Bg3 {[%clk 00:15:30]} {[%emt 00:00:03]}
Ne4 {[%clk 00:15:16]} {[%emt 00:00:15]} 6. Bd3 {[%clk 00:15:14]} {[%emt
00:00:26]} f5 {[%clk 00:15:10]} {[%emt 00:00:16]} 7. Nbd2 {[%clk 00:13:14]}
{[%emt 00:02:10]} O-O {[%clk 00:15:10]} {[%emt 00:00:10]} 8. Ne5 {[%clk
00:12:44]} {[%emt 00:00:40]} Nd7 {[%clk 00:13:59]} {[%emt 00:01:21]} 9. Ndf3
{[%clk 00:11:33]} {[%emt 00:01:21]} c5 {[%clk 00:12:18]} {[%emt 00:01:51]} 10.
c3 {[%clk 00:10:04]} {[%emt 00:01:39]} cxd4 {[%emt 00:01:18]} 11. exd4 {[%emt
00:00:02]} f4 {[%clk 00:10:40]} {[%emt 00:00:29]} 12. Bh4 {[%clk 00:08:44]}
{[%emt 00:01:32]} Qe8 {[%clk 00:10:48]} {[%emt 00:00:01]} 13. Qe2 {[%clk
00:07:05]} {[%emt 00:01:49]} Bxe5 {[%clk 00:09:45]} {[%emt 00:01:13]} 14. dxe5
{[%clk 00:06:44]} {[%emt 00:00:30]} Ndc5 {[%clk 00:09:52]} {[%emt 00:00:03]} 15.
O-O-O {[%clk 00:05:24]} {[%emt 00:01:31]} Nxd3+ {[%clk 00:09:14]} {[%emt
00:00:48]} 16. Rxd3 {[%clk 00:04:43]} {[%emt 00:00:51]} Bd7 {[%clk 00:09:22]}
{[%emt 00:00:02]} 17. Nd4 {[%clk 00:04:27]} {[%emt 00:00:27]} Bb5 {[%clk
00:08:56]} {[%emt 00:00:37]} 18. Nxb5 {[%clk 00:04:15]} {[%emt 00:00:22]} Qxb5
{[%clk 00:09:03]} {[%emt 00:00:02]} 19. Qd1 {[%clk 00:02:57]} {[%emt 00:01:28]}
Rac8 {[%clk 00:07:49]} {[%emt 00:01:23]} 20. f3 {[%clk 00:01:58]} {[%emt
00:01:09]} Nc5 {[%clk 00:07:49]} {[%emt 00:00:10]} 21. Rd4 {[%clk 00:01:53]}
{[%emt 00:00:15]} Nd7 {[%clk 00:07:00]} {[%emt 00:00:58]} 22. Be7 {[%clk
00:01:36]} {[%emt 00:00:27]} Rf5 {[%clk 00:06:52]} {[%emt 00:00:17]} 23. Bd6
{[%clk 00:01:44]} {[%emt 00:00:04]} Nxe5 {[%clk 00:06:49]} {[%emt 00:00:13]} 24.
Re1 {[%clk 00:01:23]} {[%emt 00:00:30]} Nc4 {[%clk 00:06:55]} {[%emt 00:00:05]}
25. Rxc4 {[%clk 00:01:03]} {[%emt 00:00:31]} dxc4 {[%clk 00:06:42]} {[%emt
00:00:21]} 26. Rxe6 {[%clk 00:01:04]} {[%emt 00:00:10]} Rd5 {[%clk 00:06:08]}
{[%emt 00:00:43]} 27. Qe2 {[%clk 00:01:00]} {[%emt 00:00:15]} Rd8 {[%clk
00:06:16]} {[%emt 00:00:01]} 28. Ba3 {[%clk 00:00:25]} {[%emt 00:00:45]} Rd1+
{[%emt 00:00:09]} 29. Qxd1 Rxd1+ {[%emt 00:00:02]} 30. Kxd1 {[%emt 00:00:01]}
Qd5+ {[%clk 00:06:12]} {[%emt 00:00:01]} 0-1

[Event "Snabb-SM för veteraner, 65+ 2019"]
[Site "Schackcentrum, Vegagatan 20, Gothenburg, Sweden"]
[Date "2019.10.05"]
[Round "4.7"]
[White "Degerfeldt, Sven"]
[Black "Olsson, Tomas"]
[Result "1/2-1/2"]
[TimeControl "15 minutes + 10 seconds per move from move one"]
[WhiteFideId "1717430"]
[BlackFideId "1702696"]
[WhiteElo "1822"]
[BlackElo "1973"]

1. d4 {[%clk 00:15:17]} {[%emt 00:00:02]} Nf6 {[%clk 00:15:18]} {[%emt
00:00:03]} 2. Nf3 {[%clk 00:15:22]} {[%emt 00:00:04]} g6 {[%clk 00:15:26]}
{[%emt 00:00:03]} 3. b3 {[%clk 00:15:31]} {[%emt 00:00:01]} Bg7 {[%clk
00:15:32]} {[%emt 00:00:04]} 4. Bb2 {[%clk 00:15:40]} c5 {[%clk 00:15:25]}
{[%emt 00:00:18]} 5. e3 {[%clk 00:15:44]} {[%emt 00:00:05]} b6 {[%clk
00:15:31]} {[%emt 00:00:05]} 6. Be2 {[%clk 00:15:44]} {[%emt 00:00:10]} Bb7
{[%clk 00:15:34]} {[%emt 00:00:07]} 7. O-O {[%clk 00:15:51]} {[%emt 00:00:02]}
O-O {[%clk 00:15:38]} {[%emt 00:00:07]} 8. c4 {[%clk 00:15:50]} {[%emt
00:00:10]} cxd4 {[%clk 00:15:37]} {[%emt 00:00:12]} 9. exd4 {[%clk 00:15:53]}
{[%emt 00:00:07]} d5 {[%clk 00:15:45]} {[%emt 00:00:03]} 10. Nbd2 {[%clk
00:15:51]} {[%emt 00:00:11]} Nc6 {[%clk 00:15:49]} {[%emt 00:00:07]} 11. Rc1
{[%clk 00:15:24]} {[%emt 00:00:36]} Rc8 {[%clk 00:15:52]} {[%emt 00:00:07]} 12.
c5 {[%clk 00:15:00]} {[%emt 00:00:34]} bxc5 {[%clk 00:14:30]} {[%emt 00:01:33]}
13. Rxc5 {[%clk 00:15:06]} {[%emt 00:00:04]} Re8 {[%clk 00:12:49]} {[%emt
00:01:51]} 14. Bb5 {[%clk 00:14:36]} {[%emt 00:00:39]} Qb6 {[%clk 00:12:14]}
{[%emt 00:00:45]} 15. Bxc6 {[%clk 00:13:44]} {[%emt 00:01:02]} Rxc6 {[%clk
00:12:04]} {[%emt 00:00:20]} 16. Rxc6 {[%clk 00:13:32]} {[%emt 00:00:22]} Bxc6
{[%clk 00:11:33]} {[%emt 00:00:41]} 17. Ne5 {[%clk 00:13:24]} {[%emt 00:00:18]}
Bb5 {[%clk 00:11:29]} {[%emt 00:00:14]} 18. Re1 {[%clk 00:13:30]} {[%emt
00:00:04]} e6 {[%clk 00:11:23]} {[%emt 00:00:17]} 19. a4 {[%clk 00:13:27]}
{[%emt 00:00:13]} Ba6 {[%clk 00:11:22]} {[%emt 00:00:11]} 20. Ndf3 {[%clk
00:11:57]} {[%emt 00:01:39]} Re7 {[%clk 00:08:24]} {[%emt 00:03:08]} 21. Ba3
{[%clk 00:11:34]} {[%emt 00:00:34]} Rc7 {[%clk 00:08:03]} {[%emt 00:00:31]} 22.
Bc5 {[%clk 00:11:23]} {[%emt 00:00:21]} Qb8 {[%clk 00:07:55]} {[%emt 00:00:17]}
23. b4 {[%clk 00:11:26]} {[%emt 00:00:08]} Qe8 {[%clk 00:07:16]} {[%emt
00:00:49]} 24. b5 {[%clk 00:10:57]} {[%emt 00:00:38]} Bc8 {[%clk 00:06:33]}
{[%emt 00:00:53]} 25. Nd2 {[%clk 00:10:58]} {[%emt 00:00:09]} Nd7 {[%clk
00:06:22]} {[%emt 00:00:21]} 26. Nxd7 {[%clk 00:10:39]} {[%emt 00:00:29]} Qxd7
{[%clk 00:06:30]} {[%emt 00:00:02]} 27. Nf3 {[%clk 00:10:28]} {[%emt 00:00:20]}
Rb7 {[%clk 00:05:49]} {[%emt 00:00:52]} 28. Ne5 {[%clk 00:09:42]} {[%emt
00:00:56]} Qc7 {[%clk 00:05:42]} {[%emt 00:00:17]} 29. Qd2 {[%clk 00:09:24]}
{[%emt 00:00:27]} Bd7 {[%clk 00:05:35]} {[%emt 00:00:17]} 30. Rc1 {[%clk
00:08:26]} {[%emt 00:01:08]} Qd8 {[%clk 00:05:32]} {[%emt 00:00:13]} 31. Qb4
{[%clk 00:07:58]} {[%emt 00:00:38]} Be8 {[%clk 00:05:27]} {[%emt 00:00:15]} 32.
Qe1 {[%clk 00:07:08]} {[%emt 00:00:59]} Rc7 {[%clk 00:05:16]} {[%emt 00:00:22]}
33. f4 {[%clk 00:06:47]} {[%emt 00:00:30]} Qc8 {[%clk 00:05:18]} {[%emt
00:00:08]} 34. Qa5 {[%clk 00:06:16]} {[%emt 00:00:41]} g5 {[%clk 00:04:27]}
{[%emt 00:01:00]} 35. g3 {[%clk 00:06:01]} {[%emt 00:00:25]} h6 {[%clk
00:04:19]} {[%emt 00:00:18]} 36. Rc3 {[%clk 00:05:55]} {[%emt 00:00:16]} f6
{[%clk 00:04:03]} {[%emt 00:00:27]} 37. Nd3 {[%clk 00:05:56]} {[%emt 00:00:09]}
Bg6 {[%clk 00:03:43]} {[%emt 00:00:29]} 38. Nb4 {[%clk 00:05:56]} {[%emt
00:00:09]} e5 {[%clk 00:03:30]} {[%emt 00:00:24]} 39. Nc6 {[%clk 00:04:51]}
{[%emt 00:01:14]} Qg4 {[%clk 00:02:20]} {[%emt 00:01:21]} 40. Rc1 {[%clk
00:03:23]} {[%emt 00:01:39]} Qe2 {[%clk 00:02:00]} {[%emt 00:00:29]} 41. Qe1
{[%clk 00:02:34]} {[%emt 00:01:00]} Qf3 {[%clk 00:01:52]} {[%emt 00:00:18]} 42.
Qc3 {[%clk 00:02:16]} {[%emt 00:00:28]} Bd3 {[%clk 00:01:37]} {[%emt 00:00:25]}
43. Ne7+ {[%clk 00:01:12]} {[%emt 00:01:15]} Rxe7 {[%clk 00:01:03]} {[%emt
00:00:44]} 44. Bxe7 {[%clk 00:01:16]} {[%emt 00:00:06]} Qe3+ {[%clk 00:01:08]}
{[%emt 00:00:05]} 45. Kg2 {[%clk 00:00:54]} {[%emt 00:00:31]} Qe2+ {[%clk
00:01:10]} {[%emt 00:00:08]} 46. Kg1 {[%clk 00:00:56]} {[%emt 00:00:08]} Qe3+
{[%clk 00:01:17]} {[%emt 00:00:04]} 1/2-1/2

[Event "Snabb-SM för veteraner, 65+ 2019"]
[Site "Schackcentrum, Vegagatan 20, Gothenburg, Sweden"]
[Date "2019.10.05"]
[Round "4.8"]
[White "Nyberg, Bo"]
[Black "Herrman, Jan"]
[Result "1-0"]
[TimeControl "15 minutes + 10 seconds per move from move one"]
[WhiteFideId "1710583"]
[BlackFideId "1731882"]
[WhiteElo "1806"]
[BlackElo "1929"]

1. d4 {[%clk 00:15:17]} {[%emt 00:00:03]} Nf6 {[%clk 00:15:17]} {[%emt
00:00:03]} 2. Bf4 {[%clk 00:15:23]} {[%emt 00:00:04]} e6 {[%clk 00:15:22]}
{[%emt 00:00:05]} 3. e3 {[%clk 00:15:28]} {[%emt 00:00:05]} d5 {[%clk
00:15:24]} {[%emt 00:00:07]} 4. c3 {[%clk 00:15:18]} {[%emt 00:00:22]} Bd6
{[%clk 00:15:25]} {[%emt 00:00:08]} 5. Bg3 {[%clk 00:15:23]} {[%emt 00:00:05]}
O-O {[%clk 00:15:29]} {[%emt 00:00:06]} 6. Nd2 {[%clk 00:15:30]} {[%emt
00:00:04]} b6 {[%clk 00:15:25]} {[%emt 00:00:14]} 7. Ngf3 {[%clk 00:15:29]}
{[%emt 00:00:11]} c5 {[%clk 00:14:58]} {[%emt 00:00:37]} 8. Ne5 {[%clk
00:14:57]} {[%emt 00:00:43]} Qc7 {[%clk 00:14:33]} {[%emt 00:00:34]} 9. f4
{[%clk 00:14:47]} {[%emt 00:00:20]} Ba6 {[%clk 00:12:31]} {[%emt 00:02:13]} 10.
Bxa6 {[%clk 00:14:51]} {[%emt 00:00:06]} Nxa6 {[%clk 00:12:39]} {[%emt
00:00:01]} 11. O-O {[%clk 00:14:55]} {[%emt 00:00:06]} Rac8 {[%clk 00:12:46]}
{[%emt 00:00:04]} 12. Kh1 {[%clk 00:13:58]} {[%emt 00:01:06]} b5 {[%clk
00:12:21]} {[%emt 00:00:34]} 13. Qe2 {[%clk 00:13:42]} {[%emt 00:00:27]} Qb7
{[%clk 00:11:32]} {[%emt 00:00:58]} 14. Bh4 {[%clk 00:12:17]} {[%emt 00:01:36]}
Ne8 {[%clk 00:10:04]} {[%emt 00:01:38]} 15. a4 {[%clk 00:10:58]} {[%emt
00:01:29]} b4 {[%clk 00:09:56]} {[%emt 00:00:18]} 16. Qb5 {[%clk 00:10:47]}
{[%emt 00:00:22]} Qxb5 {[%clk 00:06:20]} {[%emt 00:03:46]} 17. axb5 {[%clk
00:10:54]} {[%emt 00:00:03]} Nac7 {[%clk 00:06:28]} {[%emt 00:00:01]} 18. Nd7
{[%clk 00:10:57]} {[%emt 00:00:08]} Nxb5 {[%clk 00:06:32]} {[%emt 00:00:06]} 19.
Nxf8 {[%clk 00:11:02]} {[%emt 00:00:04]} Kxf8 {[%clk 00:06:15]} {[%emt
00:00:27]} 20. c4 {[%clk 00:09:36]} {[%emt 00:01:36]} dxc4 {[%clk 00:06:00]}
{[%emt 00:00:25]} 21. Nxc4 {[%clk 00:09:44]} {[%emt 00:00:02]} Bb8 {[%clk
00:05:25]} {[%emt 00:00:45]} 22. dxc5 {[%clk 00:08:48]} {[%emt 00:01:06]} Rxc5
{[%clk 00:05:23]} {[%emt 00:00:11]} 23. b3 {[%clk 00:08:52]} {[%emt 00:00:06]}
Nf6 {[%clk 00:03:57]} {[%emt 00:01:36]} 24. Bxf6 {[%clk 00:08:56]} {[%emt
00:00:07]} gxf6 {[%clk 00:04:06]} {[%emt 00:00:01]} 25. Rfd1 {[%clk 00:08:54]}
{[%emt 00:00:10]} Ke7 {[%clk 00:04:12]} {[%emt 00:00:06]} 26. Rd3 {[%clk
00:08:49]} {[%emt 00:00:15]} e5 {[%clk 00:02:44]} {[%emt 00:01:38]} 27. g3
{[%clk 00:07:50]} {[%emt 00:01:09]} Ke6 {[%clk 00:01:50]} {[%emt 00:01:04]} 28.
Rad1 {[%clk 00:07:43]} {[%emt 00:00:17]} Nc3 {[%clk 00:01:23]} {[%emt
00:00:38]} 29. Ra1 {[%clk 00:07:41]} {[%emt 00:00:12]} Ne4 {[%clk 00:01:24]}
{[%emt 00:00:10]} 30. Kg2 {[%clk 00:07:40]} {[%emt 00:00:09]} exf4 {[%clk
00:01:01]} {[%emt 00:00:34]} 31. exf4 {[%clk 00:07:46]} {[%emt 00:00:04]} Nc3
{[%clk 00:01:03]} {[%emt 00:00:08]} 32. Re1+ {[%clk 00:07:27]} {[%emt
00:00:29]} Kf5 {[%clk 00:00:58]} {[%emt 00:00:15]} 33. Kf3 {[%clk 00:07:08]}
{[%emt 00:00:29]} h5 {[%clk 00:01:06]} {[%emt 00:00:02]} 34. h3 {[%clk
00:07:08]} {[%emt 00:00:09]} Kg6 {[%clk 00:00:51]} {[%emt 00:00:26]} 35. g4
{[%clk 00:06:54]} {[%emt 00:00:24]} hxg4+ {[%clk 00:00:53]} {[%emt 00:00:07]}
36. hxg4 {[%clk 00:07:03]} {[%emt 00:00:01]} Nd5 {[%clk 00:00:49]} {[%emt
00:00:14]} 37. f5+ {[%clk 00:06:45]} {[%emt 00:00:28]} Kg7 {[%clk 00:00:45]}
{[%emt 00:00:15]} 38. Ne3 {[%clk 00:05:41]} {[%emt 00:01:14]} Nf4 {[%clk
00:00:14]} {[%emt 00:00:41]} 39. Rd4 {[%clk 00:05:29]} {[%emt 00:00:21]} Rb5
{[%clk 00:00:13]} {[%emt 00:00:12]} 40. Rxf4 {[%clk 00:05:32]} {[%emt
00:00:07]} Bxf4 {[%clk 00:00:20]} {[%emt 00:00:03]} 41. Kxf4 {[%clk 00:05:40]}
{[%emt 00:00:02]} Rc5 {[%clk 00:00:26]} {[%emt 00:00:05]} 42. Nc4 {[%clk
00:05:46]} {[%emt 00:00:03]} a5 {[%clk 00:00:33]} {[%emt 00:00:03]} 43. Ra1
{[%clk 00:05:49]} {[%emt 00:00:06]} Rd5 {[%clk 00:00:38]} {[%emt 00:00:06]} 44.
Nxa5 {[%clk 00:05:47]} {[%emt 00:00:13]} Rd4+ {[%clk 00:00:44]} {[%emt
00:00:04]} 45. Kg3 {[%clk 00:05:51]} {[%emt 00:00:05]} Kh6 {[%clk 00:00:50]}
{[%emt 00:00:05]} 46. Rh1+ {[%clk 00:05:40]} {[%emt 00:00:20]} Kg7 {[%clk
00:00:57]} {[%emt 00:00:04]} 47. Rc1 {[%clk 00:05:20]} {[%emt 00:00:28]} Kh6
{[%clk 00:00:58]} {[%emt 00:00:09]} 48. Rc4 {[%clk 00:05:23]} {[%emt 00:00:07]}
Rd5 {[%clk 00:00:58]} {[%emt 00:00:10]} 49. Nc6 {[%clk 00:05:08]} {[%emt
00:00:25]} Rd3+ {[%clk 00:01:04]} {[%emt 00:00:05]} 50. Kf4 {[%clk 00:05:09]}
{[%emt 00:00:09]} Rxb3 {[%clk 00:01:13]} {[%emt 00:00:02]} 51. Rxb4 {[%clk
00:05:16]} {[%emt 00:00:03]} Rc3 {[%clk 00:01:20]} {[%emt 00:00:02]} 52. Nd8
{[%clk 00:05:17]} {[%emt 00:00:09]} Rc1 {[%clk 00:01:22]} {[%emt 00:00:09]} 53.
Rb3 {[%clk 00:04:56]} {[%emt 00:00:30]} Kg7 {[%clk 00:01:14]} {[%emt 00:00:18]}
54. Rb7 {[%clk 00:03:58]} {[%emt 00:01:08]} Rf1+ {[%clk 00:01:15]} {[%emt
00:00:09]} 55. Kg3 {[%clk 00:04:06]} {[%emt 00:00:02]} Rg1+ {[%clk 00:01:24]}
{[%emt 00:00:02]} 56. Kh2 {[%clk 00:04:08]} {[%emt 00:00:08]} Rxg4 {[%clk
00:01:29]} {[%emt 00:00:05]} 57. Rxf7+ {[%clk 00:04:12]} {[%emt 00:00:05]} Kg8
{[%clk 00:01:27]} {[%emt 00:00:13]} 58. Rxf6 {[%clk 00:04:11]} {[%emt
00:00:10]} Kg7 {[%clk 00:01:31]} {[%emt 00:00:05]} 59. Kh3 {[%clk 00:03:39]}
{[%emt 00:00:43]} Rg1 {[%clk 00:01:05]} {[%emt 00:00:37]} 60. Rb6 {[%clk
00:03:08]} {[%emt 00:00:41]} Rf1 {[%clk 00:00:47]} {[%emt 00:00:28]} 61. Ne6+
{[%clk 00:03:07]} {[%emt 00:00:11]} Kf6 {[%clk 00:00:46]} {[%emt 00:00:11]} 62.
Nd4+ {[%clk 00:03:14]} {[%emt 00:00:03]} Ke5 {[%clk 00:00:46]} {[%emt
00:00:09]} 63. Rb4 {[%clk 00:03:05]} {[%emt 00:00:21]} Rd1 {[%emt 00:00:45]}
1-0